{"text_format":"3","workbook":"xlsx","n_sheets":26,"sheets":["Start","1","2","3","4","5","6","7","8","9","10","11","12","13","14","15","16","17","18","19","20","21","22","23","24","Läs mer"],"not_rendered":{"images":24,"defined_names":5,"pivot_tables":19},"read":"whole","date_system":"1900"}

{"sheet":"Start","index":0,"n_rows":5,"n_cols":1,"rows_kept":5}
["Välkommen\nInstruktioner för skärmläsare: Få ut mer av pivottabeller. Med en enkel pivottabell får du en total översikt över dina data men ibland behöver du detaljerade svar på specifika frågor. Då kan det vara bra att lägga till fler kolumnfält och radfält. \nInstruktionerna anger vilka celler du går till för att använda en funktion, eller för att läsa mer.\nSätt igång genom att trycka på CTRL+PAGE DOWN."]
["Få ut mer av pivottabeller"]
["Med en enkel pivottabell får du en total översikt över dina data\nmen ibland behöver du detaljerade svar på specifika frågor.\nDå kan det vara bra att lägga till fler kolumnfält och radfält."]
["BRA ATT VETA\nHar du gjort den första självstudiekursen? Om inte går du till Arkiv > Nytt och letar reda på Gör din första pivottabell."]
["Tryck på CTRL+HOME om du vill gå tillbaka till början. Tryck på CTRL+PAGE DOWN när du vill starta introduktionen."]

{"sheet":"1","index":1,"n_rows":16,"n_cols":9,"rows_kept":16}
["I den första självstudiekursen introducerade vi pivottabellen. Vi förklarade även hur ett fält kan användas som ett villkor som delar upp ett värdefält.   "]
["Cellerna H10 till och med I14 innehåller en pivottabell som sammanfattar data i cell B8 till E16. Pivottabellen har två kolumner: Köpare och Summa av Belopp. Kolumnen köpare innehåller värdena Pappa, Mamma, Kelly och Totalsumma. Kolumnen Summa av Belopp kolumnen innehåller värdena 220 kr, 270 kr, 810 kr och 1 300 kr. Kolumnen Köpare utgörs av ett radfält och kolumnen Summa av Belopp utgörs av ett värdefält."]
["Tryck på CTRL + PAGE DOWN när du vill fortsätta med den här självstudiekursen. Tryck på CTRL + PAGE UP om du vill gå till föregående blad."]
[]
[]
[]
[]
[null,"Datum","Köpare","Typ","Belopp"]
["Det här exemplet visar hur radfältet...","2017-01-01","Pappa","Presenter",{"v":95,"d":"95 kr"}]
["...delar upp värdefältet.","2017-01-15","Mamma","Mat",{"v":325,"d":"325 kr"},null,null,"Köpare","Summa av Belopp"]
[null,"2017-01-17","Mamma","Biljetter",{"v":250,"d":"250 kr"},null,null,"Pappa",{"v":220,"d":"220 kr"}]
[null,"2017-01-21","Pappa","Mat",{"v":125,"d":"125 kr"},null,null,"Kelly",{"v":270,"d":"270 kr"}]
[null,"2017-02-02","Mamma","Mat",{"v":235,"d":"235 kr"},null,null,"Mamma",{"v":810,"d":"810 kr"}]
[null,"2017-02-20","Kelly","Musik",{"v":20,"d":"20 kr"},null,null,"Grand Total",{"v":1300,"d":"1,300 kr"}]
[null,"2017-02-25","Kelly","Biljetter",{"v":125,"d":"125 kr"}]
[null,"2017-02-25","Kelly","Sport",{"v":125,"d":"125 kr"}]

{"sheet":"2","index":2,"n_rows":108,"n_cols":7,"rows_kept":108}
["Men när du tittar på en pivottabell för första gången kanske du tycker att du behöver fler svar."]
["När du tittar på en pivottabell för första gången kanske du har frågor som ”När gjordes de här inköpen?”, ”Vad har varje person lagt pengar på?”, ”Vad har mamma köpt som var så dyrt?”."]
["I det här exemplet visar cell F11 till G15 samma pivottabell med två kolumner som tidigare. Kolumnen Köpare är ett radfält och innehåller värdena Pappa, Mamma, Kelly och Totalsumma. Kolumnen Summa av Belopp är värdefältet och innehåller värdena 220 kr, 270 kr, 810 kr och 1 300 kr. "]
["Tryck på CTRL + PAGE DOWN när du vill fortsätta med den här självstudiekursen. Tryck på CTRL + PAGE UP om du vill gå till föregående blad."]
[]
[]
[]
[]
[]
[]
[{"$nulls":5},"Köpare","Summa av Belopp"]
[{"$nulls":5},"Pappa",{"v":220,"d":"220 kr"}]
[{"$nulls":5},"Kelly",{"v":270,"d":"270 kr"}]
[{"$nulls":5},"Mamma",{"v":810,"d":"810 kr"}]
[{"$nulls":5},"Grand Total",{"v":1300,"d":"1,300 kr"}]
{"$rows_empty":84}
[null,"Datum","Köpare","Typ","Belopp"]
[null,"2017-01-01","Pappa","Presenter",{"v":95,"d":"95 kr"}]
[null,"2017-01-15","Mamma","Mat",{"v":325,"d":"325 kr"}]
[null,"2017-01-17","Mamma","Biljetter",{"v":250,"d":"250 kr"}]
[null,"2017-01-21","Pappa","Mat",{"v":125,"d":"125 kr"}]
[null,"2017-02-02","Mamma","Mat",{"v":235,"d":"235 kr"}]
[null,"2017-02-20","Kelly","Musik",{"v":20,"d":"20 kr"}]
[null,"2017-02-25","Kelly","Biljetter",{"v":125,"d":"125 kr"}]
[null,"2017-02-25","Kelly","Sport",{"v":125,"d":"125 kr"}]

{"sheet":"3","index":3,"n_rows":108,"n_cols":7,"rows_kept":108}
["Det är bra frågor men just nu ska vi bara fokusera på en fråga."]
["Vad har varje person lagt pengar på?"]
["Som referens visar cell F11 till G15 samma pivottabell med två kolumner som tidigare. Kolumnen Köpare är ett radfält och innehåller värdena Pappa, Mamma, Kelly och Totalsumma. Kolumnen Summa av Belopp är värdefältet och innehåller värdena 220 kr, 270 kr, 810 kr och 1 300 kr. "]
["Tryck på CTRL + PAGE DOWN när du vill fortsätta med den här självstudiekursen. Tryck på CTRL + PAGE UP om du vill gå till föregående blad."]
[]
[]
[]
[]
[]
[]
[{"$nulls":5},"Köpare","Summa av Belopp"]
[{"$nulls":5},"Pappa",{"v":220,"d":"220 kr"}]
[{"$nulls":5},"Kelly",{"v":270,"d":"270 kr"}]
[{"$nulls":5},"Mamma",{"v":810,"d":"810 kr"}]
[{"$nulls":5},"Grand Total",{"v":1300,"d":"1,300 kr"}]
{"$rows_empty":84}
[null,"Datum","Köpare","Typ","Belopp"]
[null,"2017-01-01","Pappa","Presenter",{"v":95,"d":"95 kr"}]
[null,"2017-01-15","Mamma","Mat",{"v":325,"d":"325 kr"}]
[null,"2017-01-17","Mamma","Biljetter",{"v":250,"d":"250 kr"}]
[null,"2017-01-21","Pappa","Mat",{"v":125,"d":"125 kr"}]
[null,"2017-02-02","Mamma","Mat",{"v":235,"d":"235 kr"}]
[null,"2017-02-20","Kelly","Musik",{"v":20,"d":"20 kr"}]
[null,"2017-02-25","Kelly","Biljetter",{"v":125,"d":"125 kr"}]
[null,"2017-02-25","Kelly","Sport",{"v":125,"d":"125 kr"}]

{"sheet":"4","index":4,"n_rows":108,"n_cols":9,"rows_kept":108}
["Den senaste frågan vi ställde var ”Vad har varje person lagt pengar på?”"]
["Vi besvarade den frågan genom att lägga till ett kolumnfält, Typ. Därför har nu pivottabellen fem nya kolumner som visar oss vilken typ av köp som varje person har gjort. "]
["Vår nya pivottabell finns nu i cell C10 till I15, med kolumner för Köpare, Mat, Musik, Sport, Biljetter, Presenter och Totalsumma. Köpare och Totalsumma är samma som tidigare och den nya detaljkolumnen är mellan dem."]
["Tryck på CTRL + PAGE DOWN när du vill fortsätta med den här självstudiekursen. Tryck på CTRL + PAGE UP om du vill gå till föregående blad."]
[]
[]
[]
[]
[]
[null,null,"Summa av Belopp","Typ"]
[null,null,"Köpare","Mat","Musik","Sport","Biljetter","Presenter","Grand Total"]
[null,null,"Pappa",{"v":125,"d":"125 kr"},{"$nulls":3},{"v":95,"d":"95 kr"},{"v":220,"d":"220 kr"}]
[null,null,"Kelly",null,{"v":20,"d":"20 kr"},{"v":125,"d":"125 kr"},{"v":125,"d":"125 kr"},null,{"v":270,"d":"270 kr"}]
[null,null,"Mamma",{"v":560,"d":"560 kr"},null,null,{"v":250,"d":"250 kr"},null,{"v":810,"d":"810 kr"}]
[null,null,"Grand Total",{"v":685,"d":"685 kr"},{"v":20,"d":"20 kr"},{"v":125,"d":"125 kr"},{"v":375,"d":"375 kr"},{"v":95,"d":"95 kr"},{"v":1300,"d":"1,300 kr"}]
{"$rows_empty":84}
[null,"Datum","Köpare","Typ","Belopp"]
[null,"2017-01-01","Pappa","Presenter",{"v":95,"d":"95 kr"}]
[null,"2017-01-15","Mamma","Mat",{"v":325,"d":"325 kr"}]
[null,"2017-01-17","Mamma","Biljetter",{"v":250,"d":"250 kr"}]
[null,"2017-01-21","Pappa","Mat",{"v":125,"d":"125 kr"}]
[null,"2017-02-02","Mamma","Mat",{"v":235,"d":"235 kr"}]
[null,"2017-02-20","Kelly","Musik",{"v":20,"d":"20 kr"}]
[null,"2017-02-25","Kelly","Biljetter",{"v":125,"d":"125 kr"}]
[null,"2017-02-25","Kelly","Sport",{"v":125,"d":"125 kr"}]

{"sheet":"5","index":5,"n_rows":108,"n_cols":9,"rows_kept":108}
["Prova följande om pivottabellen är svår att förstå: Läs från vänster, sedan uppifrån och sedan nedåt. I exemplet nedan är Pappa i cell C12, Mat för 125 kr i cell D12, Presenter för 95 kr i cell E12 och Totalsumma 220 kr i cell I12. Rad 13 och 14 visar detaljerna för Kelly och Mamma och rad 15 visar Totalsumma."]
["Tryck på CTRL + PAGE DOWN när du vill fortsätta med den här självstudiekursen. Tryck på CTRL + PAGE UP om du vill gå till föregående blad."]
{"$rows_empty":9}
[null,null,"Summa av Belopp","Typ"]
[null,null,"Köpare","Mat","Presenter","Musik","Sport","Biljetter","Grand Total"]
[null,null,"Pappa",{"v":125,"d":"125 kr"},{"v":95,"d":"95 kr"},{"$nulls":3},{"v":220,"d":"220 kr"}]
[null,null,"Kelly",null,null,{"v":20,"d":"20 kr"},{"v":125,"d":"125 kr"},{"v":125,"d":"125 kr"},{"v":270,"d":"270 kr"}]
[null,null,"Mamma",{"v":560,"d":"560 kr"},{"$nulls":3},{"v":250,"d":"250 kr"},{"v":810,"d":"810 kr"}]
[null,null,"Grand Total",{"v":685,"d":"685 kr"},{"v":95,"d":"95 kr"},{"v":20,"d":"20 kr"},{"v":125,"d":"125 kr"},{"v":375,"d":"375 kr"},{"v":1300,"d":"1,300 kr"}]
{"$rows_empty":82}
[null,"Datum","Köpare","Typ","Belopp"]
[null,"2017-01-01","Pappa","Presenter",{"v":95,"d":"95 kr"}]
[null,"2017-01-15","Mamma","Mat",{"v":325,"d":"325 kr"}]
[null,"2017-01-17","Mamma","Biljetter",{"v":250,"d":"250 kr"}]
[null,"2017-01-21","Pappa","Mat",{"v":125,"d":"125 kr"}]
[null,"2017-02-02","Mamma","Mat",{"v":235,"d":"235 kr"}]
[null,"2017-02-20","Kelly","Musik",{"v":20,"d":"20 kr"}]
[null,"2017-02-25","Kelly","Biljetter",{"v":125,"d":"125 kr"}]
[null,"2017-02-25","Kelly","Sport",{"v":125,"d":"125 kr"}]

{"sheet":"6","index":6,"n_rows":3,"n_cols":1,"rows_kept":3}
["Gör inte detta nu, men om några steg arbetar du med en pivottabell. Det första du gör är att skapa detalj i fältet Kolumner. Det gör du genom att placera fältet Typ i fältområdet Kolumner."]
["Bilden Fältlista för Pivottabellfält visar en pilmarkör som drar fältet Typ till området Kolumner."]
["Tryck på CTRL + PAGE DOWN när du vill fortsätta med den här självstudiekursen. Tryck på CTRL + PAGE UP om du vill gå till föregående blad."]

{"sheet":"7","index":7,"n_rows":108,"n_cols":9,"rows_kept":108}
["1. Området Pivottabell för det här exemplet finns i cell B13 till C17. Gå till någon av cellerna."]
["2. Tryck på ALT+JN, L för att öppna fältlistan för Pivottabellfält. Fokus är som standard på textrutan Sök: \"Sök\"-redigering"]
["3. Tryck på piltangenterna för att välja fältet Typ. När det har valts trycker du på blanksteg för att lägga till fältet Typ i området Rader. "]
["4. Tryck på TABB för att välja Typ fältet. Tryck på RETUR och tryck sedan på piltangenterna för att välja Flytta till kolumnetiketter och tryck på RETUR för att lägga till Typ fältet till kolumner. Tryck ALT+JN+L för att avsluta Pivottabellfält fältpanel."]
["Tryck på CTRL + PAGE DOWN när du vill fortsätta med den här självstudiekursen. Tryck på CTRL + PAGE UP om du vill gå till föregående blad."]
[]
[]
[]
[{"$nulls":8},{"$f":"IF(AND($B$14=\"Köpare\",$H$17=810),\"Bra jobbat! Du har placerat\",\" \")","v":" "}]
[{"$nulls":8},{"$f":"IF(AND($B$14=\"Köpare\",$H$17=810),\"ditt första kolumnfält.\",\" \")","v":" "}]
[{"$nulls":8},{"$f":"IF(AND($B$14=\"Köpare\",$H$17=810),\"Klicka på Nästa för att fortsätta...\",\" \")","v":" "}]
[]
[null,"Köpare","Summa av Belopp"]
[null,"Pappa",{"v":220,"d":"220 kr"}]
[null,"Kelly",{"v":270,"d":"270 kr"}]
[null,"Mamma",{"v":810,"d":"810 kr"}]
[null,"Grand Total",{"v":1300,"d":"1,300 kr"}]
{"$rows_empty":82}
[null,"Datum","Köpare","Typ","Belopp"]
[null,"2017-01-01","Pappa","Presenter",{"v":95,"d":"95 kr"}]
[null,"2017-01-15","Mamma","Mat",{"v":325,"d":"325 kr"}]
[null,"2017-01-17","Mamma","Biljetter",{"v":250,"d":"250 kr"}]
[null,"2017-01-21","Pappa","Mat",{"v":125,"d":"125 kr"}]
[null,"2017-02-02","Mamma","Mat",{"v":235,"d":"235 kr"}]
[null,"2017-02-20","Kelly","Musik",{"v":20,"d":"20 kr"}]
[null,"2017-02-25","Kelly","Biljetter",{"v":125,"d":"125 kr"}]
[null,"2017-02-25","Kelly","Sport",{"v":125,"d":"125 kr"}]

{"sheet":"8","index":8,"n_rows":108,"n_cols":9,"rows_kept":108}
["Nu ska vi granska pivottabellen du precis har skapat men den här gången har vi lagt till några specialfärger för att skilja på rad-, kolumn- och värdefälten."]
["Radfältet finns i cell C10 till C13 och är skuggat i gult."]
["Kolumnfältet finns i cell D9 till H10 och är skuggat i orange."]
["Värdefältet finns i cell D11 till H13 och är skuggat i blått."]
["Tryck på CTRL + PAGE DOWN när du vill fortsätta med den här självstudiekursen. Tryck på CTRL + PAGE UP om du vill gå till föregående blad."]
[]
[]
[]
[null,null,"Summa av Belopp","Typ"]
[null,null,"Köpare","Mat","Presenter","Musik","Sport","Biljetter","Grand Total"]
[null,null,"Pappa",{"v":125,"d":"125 kr"},{"v":95,"d":"95 kr"},{"$nulls":3},{"v":220,"d":"220 kr"}]
[null,null,"Kelly",null,null,{"v":20,"d":"20 kr"},{"v":125,"d":"125 kr"},{"v":125,"d":"125 kr"},{"v":270,"d":"270 kr"}]
[null,null,"Mamma",{"v":560,"d":"560 kr"},{"$nulls":3},{"v":250,"d":"250 kr"},{"v":810,"d":"810 kr"}]
[null,null,"Grand Total",{"v":685,"d":"685 kr"},{"v":95,"d":"95 kr"},{"v":20,"d":"20 kr"},{"v":125,"d":"125 kr"},{"v":375,"d":"375 kr"},{"v":1300,"d":"1,300 kr"}]
{"$rows_empty":85}
[null,"Datum","Köpare","Typ","Belopp"]
[null,"2017-01-01","Pappa","Presenter",{"v":95,"d":"95 kr"}]
[null,"2017-01-15","Mamma","Mat",{"v":325,"d":"325 kr"}]
[null,"2017-01-17","Mamma","Biljetter",{"v":250,"d":"250 kr"}]
[null,"2017-01-21","Pappa","Mat",{"v":125,"d":"125 kr"}]
[null,"2017-02-02","Mamma","Mat",{"v":235,"d":"235 kr"}]
[null,"2017-02-20","Kelly","Musik",{"v":20,"d":"20 kr"}]
[null,"2017-02-25","Kelly","Biljetter",{"v":125,"d":"125 kr"}]
[null,"2017-02-25","Kelly","Sport",{"v":125,"d":"125 kr"}]

{"sheet":"9","index":9,"n_rows":3,"n_cols":1,"rows_kept":3}
["Du kan också tänka på det så här: Radfältet är till vänster och kolumnfältet högst upp. Var och en av dessa ger ett villkor till värdefältet, som summerar dem."]
["En konceptuell bild visar ett rektangulärt område med fyra avsnitt med radfältet längst ned till vänster i gult, kolumnfältet högst upp i orange och värdefältet längst ned till höger i blått."]
["Tryck på CTRL + PAGE DOWN när du vill fortsätta med den här självstudiekursen. Tryck på CTRL + PAGE UP om du vill gå till föregående blad."]

{"sheet":"10","index":10,"n_rows":3,"n_cols":1,"rows_kept":3}
["Tänk på det på det här sättet när du använder fältlistan. Radfältet är till vänster och kolumnfältet högst upp. Var och en av dessa ger ett villkor till värdefältet, som summerar dem."]
["En konceptuell bild visar fältlistan för Pivottabellfält med radfältet längst ned till vänster i gult, kolumnfältet högst upp i orange och värdefältet längst ned till höger i blått."]
["Tryck på CTRL + PAGE DOWN när du vill fortsätta med den här självstudiekursen. Tryck på CTRL + PAGE UP om du vill gå till föregående blad."]

{"sheet":"11","index":11,"n_rows":121,"n_cols":24,"rows_kept":121}
["En sak att tänka på: Om ett kolumnfält lägger till många kolumner i en pivottabell blir den mycket bred. "]
["I det här exemplet finns nu Pivottabellfält i cell C10 till X15, eftersom kolumnfältet har lagt till 20 nya kolumner. Det är många kolumner! Det gör så att alla måste rulla mycket..."]
["Tryck på CTRL + PAGE DOWN när du vill fortsätta med den här självstudiekursen. Tryck på CTRL + PAGE UP om du vill gå till föregående blad."]
[]
[]
[]
[]
[]
[]
[null,null,"Summa av Belopp","Typ"]
[null,null,"Köpare","Böcker","Mat","Drivmedel","Musik","Sport","Biljetter","Restaurang","Elektricitet","Medicin","Tandläkare","Skatt","Bilförsäkring","Parkering","Elektronik","Flygbiljetter","Kläder","Musiklektioner","Klubbavgifter","Sjukförsäkring","Hemförsäkring","Grand Total"]
[null,null,"Pappa",{"$nulls":4},{"v":1000,"d":"1,000 kr"},{"$nulls":5},{"v":500,"d":"500 kr"},{"$nulls":3},{"v":500,"d":"500 kr"},{"$nulls":5},{"v":2000,"d":"2,000 kr"}]
[null,null,"Kelly",{"v":250,"d":"250 kr"},null,null,{"v":20,"d":"20 kr"},null,{"v":125,"d":"125 kr"},{"v":20,"d":"20 kr"},{"$nulls":5},{"v":20,"d":"20 kr"},{"v":125,"d":"125 kr"},null,{"v":125,"d":"125 kr"},{"v":250,"d":"250 kr"},{"$nulls":3},{"v":935,"d":"935 kr"}]
[null,null,"Mamma",null,{"v":470,"d":"470 kr"},{"v":74,"d":"74 kr"},{"$nulls":4},{"v":70,"d":"70 kr"},{"v":74,"d":"74 kr"},{"v":235,"d":"235 kr"},null,{"v":74,"d":"74 kr"},{"$nulls":5},{"v":125,"d":"125 kr"},{"v":70,"d":"70 kr"},{"v":235,"d":"235 kr"},{"v":1427,"d":"1,427 kr"}]
[null,null,"Grand Total",{"v":250,"d":"250 kr"},{"v":470,"d":"470 kr"},{"v":74,"d":"74 kr"},{"v":20,"d":"20 kr"},{"v":1000,"d":"1,000 kr"},{"v":125,"d":"125 kr"},{"v":20,"d":"20 kr"},{"v":70,"d":"70 kr"},{"v":74,"d":"74 kr"},{"v":235,"d":"235 kr"},{"v":500,"d":"500 kr"},{"v":74,"d":"74 kr"},{"v":20,"d":"20 kr"},{"v":125,"d":"125 kr"},{"v":500,"d":"500 kr"},{"v":125,"d":"125 kr"},{"v":250,"d":"250 kr"},{"v":125,"d":"125 kr"},{"v":70,"d":"70 kr"},{"v":235,"d":"235 kr"},{"v":4362,"d":"4,362 kr"}]
{"$rows_empty":84}
[null,"Datum","Köpare","Typ","Belopp"]
[null,"2017-01-17","Pappa","Sport",{"v":1000,"d":"1,000 kr"}]
[null,"2017-01-17","Pappa","Flygbiljetter",{"v":500,"d":"500 kr"}]
[null,"2017-01-17","Pappa","Skatt",{"v":500,"d":"500 kr"}]
[null,"2017-02-20","Kelly","Musik",{"v":20,"d":"20 kr"}]
[null,"2017-02-25","Kelly","Biljetter",{"v":125,"d":"125 kr"}]
[null,"2017-01-21","Kelly","Böcker",{"v":250,"d":"250 kr"}]
[null,"2017-02-20","Kelly","Restaurang",{"v":20,"d":"20 kr"}]
[null,"2017-02-25","Kelly","Kläder",{"v":125,"d":"125 kr"}]
[null,"2017-01-21","Kelly","Musiklektioner",{"v":250,"d":"250 kr"}]
[null,"2017-02-20","Kelly","Parkering",{"v":20,"d":"20 kr"}]
[null,"2017-02-25","Kelly","Elektronik",{"v":125,"d":"125 kr"}]
[null,"2017-01-01","Mamma","Drivmedel",{"v":74,"d":"74 kr"}]
[null,"2017-01-15","Mamma","Mat",{"v":235,"d":"235 kr"}]
[null,"2017-01-21","Mamma","Klubbavgifter",{"v":125,"d":"125 kr"}]
[null,"2017-02-02","Mamma","Mat",{"v":235,"d":"235 kr"}]
[null,"2017-01-01","Mamma","Medicin",{"v":74,"d":"74 kr"}]
[null,"2017-01-15","Mamma","Elektricitet",{"v":70,"d":"70 kr"}]
[null,"2017-02-02","Mamma","Tandläkare",{"v":235,"d":"235 kr"}]
[null,"2017-01-01","Mamma","Bilförsäkring",{"v":74,"d":"74 kr"}]
[null,"2017-01-15","Mamma","Sjukförsäkring",{"v":70,"d":"70 kr"}]
[null,"2017-02-02","Mamma","Hemförsäkring",{"v":235,"d":"235 kr"}]

{"sheet":"12","index":12,"n_rows":119,"n_cols":5,"rows_kept":119}
["Det finns ett alternativ till extrabreda pivottabeller: du kan använda ett andra radfält istället. Ett andra radfält visas indraget under det första radfältet."]
["I det här exemplet finns det en pivottabell från cell D8 till E32. Den visar Pappa, Kelly och Mamma som första radfält i kolumn D. Utgiftstyperna är nedanför som andra radfält med poster som Sport, Flygbiljetter, Restaurang osv."]
["BRA ATT VETA\nEtt andra radfält skapar en lodrät pivottabell istället för en vågrät. Vissa användare tycker att lodräta pivottabeller är lättare att läsa eftersom de inte kräver så mycket rullning från sida till sida."]
["EXCEL TALAR\nIbland kallas ett andra radfält för ”sekundärt radfält”."]
["Tryck på CTRL + PAGE DOWN när du vill fortsätta med den här självstudiekursen. Tryck på CTRL + PAGE UP om du vill gå till föregående blad."]
[]
[]
[{"$nulls":3},"Row Labels","Summa av Belopp"]
[{"$nulls":3},"Pappa",{"v":2000,"d":"2,000 kr"}]
[{"$nulls":3},"Sport",{"v":1000,"d":"1,000 kr"}]
[{"$nulls":3},"Skatt",{"v":500,"d":"500 kr"}]
[{"$nulls":3},"Flygbiljetter",{"v":500,"d":"500 kr"}]
[{"$nulls":3},"Kelly",{"v":935,"d":"935 kr"}]
[{"$nulls":3},"Böcker",{"v":250,"d":"250 kr"}]
[{"$nulls":3},"Musik",{"v":20,"d":"20 kr"}]
[{"$nulls":3},"Biljetter",{"v":125,"d":"125 kr"}]
[{"$nulls":3},"Restaurang",{"v":20,"d":"20 kr"}]
[{"$nulls":3},"Parkering",{"v":20,"d":"20 kr"}]
[{"$nulls":3},"Elektronik",{"v":125,"d":"125 kr"}]
[{"$nulls":3},"Kläder",{"v":125,"d":"125 kr"}]
[{"$nulls":3},"Musiklektioner",{"v":250,"d":"250 kr"}]
[{"$nulls":3},"Mamma",{"v":1427,"d":"1,427 kr"}]
[{"$nulls":3},"Mat",{"v":470,"d":"470 kr"}]
[{"$nulls":3},"Drivmedel",{"v":74,"d":"74 kr"}]
[{"$nulls":3},"Elektricitet",{"v":70,"d":"70 kr"}]
[{"$nulls":3},"Medicin",{"v":74,"d":"74 kr"}]
[{"$nulls":3},"Tandläkare",{"v":235,"d":"235 kr"}]
[{"$nulls":3},"Bilförsäkring",{"v":74,"d":"74 kr"}]
[{"$nulls":3},"Klubbavgifter",{"v":125,"d":"125 kr"}]
[{"$nulls":3},"Sjukförsäkring",{"v":70,"d":"70 kr"}]
[{"$nulls":3},"Hemförsäkring",{"v":235,"d":"235 kr"}]
[{"$nulls":3},"Grand Total",{"v":4362,"d":"4,362 kr"}]
{"$rows_empty":65}
[null,"Datum","Köpare","Typ","Belopp"]
[null,"2017-01-17","Pappa","Sport",{"v":1000,"d":"1,000 kr"}]
[null,"2017-01-17","Pappa","Flygbiljetter",{"v":500,"d":"500 kr"}]
[null,"2017-01-17","Pappa","Skatt",{"v":500,"d":"500 kr"}]
[null,"2017-02-20","Kelly","Musik",{"v":20,"d":"20 kr"}]
[null,"2017-02-25","Kelly","Biljetter",{"v":125,"d":"125 kr"}]
[null,"2017-01-21","Kelly","Böcker",{"v":250,"d":"250 kr"}]
[null,"2017-02-20","Kelly","Restaurang",{"v":20,"d":"20 kr"}]
[null,"2017-02-25","Kelly","Kläder",{"v":125,"d":"125 kr"}]
[null,"2017-01-21","Kelly","Musiklektioner",{"v":250,"d":"250 kr"}]
[null,"2017-02-20","Kelly","Parkering",{"v":20,"d":"20 kr"}]
[null,"2017-02-25","Kelly","Elektronik",{"v":125,"d":"125 kr"}]
[null,"2017-01-01","Mamma","Drivmedel",{"v":74,"d":"74 kr"}]
[null,"2017-01-15","Mamma","Mat",{"v":235,"d":"235 kr"}]
[null,"2017-01-21","Mamma","Klubbavgifter",{"v":125,"d":"125 kr"}]
[null,"2017-02-02","Mamma","Mat",{"v":235,"d":"235 kr"}]
[null,"2017-01-01","Mamma","Medicin",{"v":74,"d":"74 kr"}]
[null,"2017-01-15","Mamma","Elektricitet",{"v":70,"d":"70 kr"}]
[null,"2017-02-02","Mamma","Tandläkare",{"v":235,"d":"235 kr"}]
[null,"2017-01-01","Mamma","Bilförsäkring",{"v":74,"d":"74 kr"}]
[null,"2017-01-15","Mamma","Sjukförsäkring",{"v":70,"d":"70 kr"}]
[null,"2017-02-02","Mamma","Hemförsäkring",{"v":235,"d":"235 kr"}]

{"sheet":"13","index":13,"n_rows":3,"n_cols":1,"rows_kept":3}
["På nästa blad lägger du till ett andra radfält. Och det gör du genom att placera fältet Typ under fältet Köpare i fältet Rad."]
["Bilden Fältlista för Pivottabellfält visar en pilmarkör som drar fältet Typ till området Rader."]
["Tryck på CTRL + PAGE DOWN när du vill fortsätta med den här självstudiekursen. Tryck på CTRL + PAGE UP om du vill gå till föregående blad."]

{"sheet":"14","index":14,"n_rows":122,"n_cols":9,"rows_kept":122}
["1. Området Pivottabell för det här exemplet finns i cell B13 till C17. Gå till någon av cellerna. "]
["2. Tryck på ALT+JN, L för att öppna fältlistan för pivottabellen. Fokus är som standard på textrutan Sök: Skriv ord som du vill söka efter. Skriv inte något. Tryck istället på TABB en gång. Obs! Om fältlistan inte startas trycker du på ALT + JN, L igen."]
["3. Tryck piltangenterna för att flytta fältet Typ. Tryck på blanksteg för att lägga till fältet Typ i området Rader. "]
["4. Tryck på ESC för att stänga fönstret med Pivottabellfält. "]
["Tryck på CTRL + PAGE DOWN när du vill fortsätta med den här självstudiekursen. Tryck på CTRL + PAGE UP om du vill gå till föregående blad.",{"$nulls":7},{"$f":"IF(AND($B$15=\"Flygbiljetter\",$C$36=235),\"Snyggt! Du har lagt\",\" \")","v":" "}]
[{"$nulls":8},{"$f":"IF(AND($B$15=\"Flygbiljetter\",$C$36=235),\"till ett andra radfält\",\" \")","v":" "}]
[{"$nulls":8},{"$f":"IF(AND($B$15=\"Flygbiljetter\",$C$36=235),\"i pivottabellen. Rulla \",\" \")","v":" "}]
[{"$nulls":8},{"$f":"IF(AND($B$15=\"Flygbiljetter\",$C$36=235),\"ned och klicka på Nästa...\",\" \")","v":" "}]
[]
[]
[]
[]
[null,"Köpare","Summa av Belopp"]
[null,"Pappa",{"v":2000,"d":"2,000 kr"}]
[null,"Kelly",{"v":935,"d":"935 kr"}]
[null,"Mamma",{"v":1427,"d":"1,427 kr"}]
[null,"Grand Total",{"v":4362,"d":"4,362 kr"}]
{"$rows_empty":83}
[null,"Datum","Köpare","Typ","Belopp"]
[null,"2017-01-17","Pappa","Sport",{"v":1000,"d":"1,000 kr"}]
[null,"2017-01-17","Pappa","Flygbiljetter",{"v":500,"d":"500 kr"}]
[null,"2017-01-17","Pappa","Skatt",{"v":500,"d":"500 kr"}]
[null,"2017-02-20","Kelly","Musik",{"v":20,"d":"20 kr"}]
[null,"2017-02-25","Kelly","Biljetter",{"v":125,"d":"125 kr"}]
[null,"2017-01-21","Kelly","Böcker",{"v":250,"d":"250 kr"}]
[null,"2017-02-20","Kelly","Restaurang",{"v":20,"d":"20 kr"}]
[null,"2017-02-25","Kelly","Kläder",{"v":125,"d":"125 kr"}]
[null,"2017-01-21","Kelly","Musiklektioner",{"v":250,"d":"250 kr"}]
[null,"2017-02-20","Kelly","Parkering",{"v":20,"d":"20 kr"}]
[null,"2017-02-25","Kelly","Elektronik",{"v":125,"d":"125 kr"}]
[null,"2017-01-01","Mamma","Drivmedel",{"v":74,"d":"74 kr"}]
[null,"2017-01-15","Mamma","Mat",{"v":235,"d":"235 kr"}]
[null,"2017-01-21","Mamma","Klubbavgifter",{"v":125,"d":"125 kr"}]
[null,"2017-02-02","Mamma","Mat",{"v":235,"d":"235 kr"}]
[null,"2017-01-01","Mamma","Medicin",{"v":74,"d":"74 kr"}]
[null,"2017-01-15","Mamma","Elektricitet",{"v":70,"d":"70 kr"}]
[null,"2017-02-02","Mamma","Tandläkare",{"v":235,"d":"235 kr"}]
[null,"2017-01-01","Mamma","Bilförsäkring",{"v":74,"d":"74 kr"}]
[null,"2017-01-15","Mamma","Sjukförsäkring",{"v":70,"d":"70 kr"}]
[null,"2017-02-02","Mamma","Hemförsäkring",{"v":235,"d":"235 kr"}]

{"sheet":"15","index":15,"n_rows":121,"n_cols":7,"rows_kept":121}
["Om du behöver förenkla pivottabellen kan du komprimera data för det andra radfältet ”uppåt” och ur vägen. "]
["Pivottabellen för det här exemplet finns i cell F7 till G31. Markera cell F8 för att välja det första radfältet för Pappa. Sedan trycker du på Alt+JN > 0 för att expandera det andra fältet eller K för att komprimera det."]
["Tryck på CTRL + PAGE DOWN när du vill fortsätta med den här självstudiekursen. Tryck på CTRL + PAGE UP om du vill gå till föregående blad."]
[]
[]
[{"$nulls":5},{"$f":"IF(AND($F$9=\"Kelly\",$G$9=935),\"Snyggt!\",\" \")","v":" "}]
[{"$nulls":5},"Row Labels","Summa av Belopp"]
[{"$nulls":5},"Pappa",{"v":2000,"d":"2,000 kr"}]
[{"$nulls":5},"Sport",{"v":1000,"d":"1,000 kr"}]
[{"$nulls":5},"Skatt",{"v":500,"d":"500 kr"}]
[{"$nulls":5},"Flygbiljetter",{"v":500,"d":"500 kr"}]
[{"$nulls":5},"Kelly",{"v":935,"d":"935 kr"}]
[{"$nulls":5},"Böcker",{"v":250,"d":"250 kr"}]
[{"$nulls":5},"Restaurang",{"v":20,"d":"20 kr"}]
[{"$nulls":5},"Elektronik",{"v":125,"d":"125 kr"}]
[{"$nulls":5},"Musik",{"v":20,"d":"20 kr"}]
[{"$nulls":5},"Parkering",{"v":20,"d":"20 kr"}]
[{"$nulls":5},"Biljetter",{"v":125,"d":"125 kr"}]
[{"$nulls":5},"Kläder",{"v":125,"d":"125 kr"}]
[{"$nulls":5},"Musiklektioner",{"v":250,"d":"250 kr"}]
[{"$nulls":5},"Mamma",{"v":1427,"d":"1,427 kr"}]
[{"$nulls":5},"Bilförsäkring",{"v":74,"d":"74 kr"}]
[{"$nulls":5},"Tandläkare",{"v":235,"d":"235 kr"}]
[{"$nulls":5},"Elektricitet",{"v":70,"d":"70 kr"}]
[{"$nulls":5},"Mat",{"v":470,"d":"470 kr"}]
[{"$nulls":5},"Drivmedel",{"v":74,"d":"74 kr"}]
[{"$nulls":5},"Medicin",{"v":74,"d":"74 kr"}]
[{"$nulls":5},"Klubbavgifter",{"v":125,"d":"125 kr"}]
[{"$nulls":5},"Sjukförsäkring",{"v":70,"d":"70 kr"}]
[{"$nulls":5},"Hemförsäkring",{"v":235,"d":"235 kr"}]
[{"$nulls":5},"Grand Total",{"v":4362,"d":"4,362 kr"}]
{"$rows_empty":68}
[null,"Datum","Köpare","Typ","Belopp"]
[null,"2017-01-17","Pappa","Sport",{"v":1000,"d":"1,000 kr"}]
[null,"2017-01-17","Pappa","Flygbiljetter",{"v":500,"d":"500 kr"}]
[null,"2017-01-17","Pappa","Skatt",{"v":500,"d":"500 kr"}]
[null,"2017-02-20","Kelly","Musik",{"v":20,"d":"20 kr"}]
[null,"2017-02-25","Kelly","Biljetter",{"v":125,"d":"125 kr"}]
[null,"2017-01-21","Kelly","Böcker",{"v":250,"d":"250 kr"}]
[null,"2017-02-20","Kelly","Restaurang",{"v":20,"d":"20 kr"}]
[null,"2017-02-25","Kelly","Kläder",{"v":125,"d":"125 kr"}]
[null,"2017-01-21","Kelly","Musiklektioner",{"v":250,"d":"250 kr"}]
[null,"2017-02-20","Kelly","Parkering",{"v":20,"d":"20 kr"}]
[null,"2017-02-25","Kelly","Elektronik",{"v":125,"d":"125 kr"}]
[null,"2017-01-01","Mamma","Drivmedel",{"v":74,"d":"74 kr"}]
[null,"2017-01-15","Mamma","Mat",{"v":235,"d":"235 kr"}]
[null,"2017-01-21","Mamma","Klubbavgifter",{"v":125,"d":"125 kr"}]
[null,"2017-02-02","Mamma","Mat",{"v":235,"d":"235 kr"}]
[null,"2017-01-01","Mamma","Medicin",{"v":74,"d":"74 kr"}]
[null,"2017-01-15","Mamma","Elektricitet",{"v":70,"d":"70 kr"}]
[null,"2017-02-02","Mamma","Tandläkare",{"v":235,"d":"235 kr"}]
[null,"2017-01-01","Mamma","Bilförsäkring",{"v":74,"d":"74 kr"}]
[null,"2017-01-15","Mamma","Sjukförsäkring",{"v":70,"d":"70 kr"}]
[null,"2017-02-02","Mamma","Hemförsäkring",{"v":235,"d":"235 kr"}]

{"sheet":"16","index":16,"n_rows":121,"n_cols":7,"rows_kept":121}
["Du kan även komprimera eller expandera hela det andra radfältet, för att förenkla pivottabellen ännu mer."]
["Här är nyckeln"]
["Markera pivottabellens dataområde från cell F7 till G31, tryck sedan på ALT+JN > K för att komprimera hela gruppen. Och om du trycker på ALT+JN > 0 så expanderas hela gruppen."]
["Tryck på CTRL + PAGE DOWN när du vill fortsätta med den här självstudiekursen. Tryck på CTRL + PAGE UP om du vill gå till föregående blad."]
[]
[{"$nulls":5},{"$f":"IF(AND($F$9=\"Kelly\",$G$9=935),\"Precis så!\",\" \")","v":" "}]
[{"$nulls":5},"Row Labels","Summa av Belopp"]
[{"$nulls":5},"Pappa",{"v":2000,"d":"2,000 kr"}]
[{"$nulls":5},"Sport",{"v":1000,"d":"1,000 kr"}]
[{"$nulls":5},"Skatt",{"v":500,"d":"500 kr"}]
[{"$nulls":5},"Flygbiljetter",{"v":500,"d":"500 kr"}]
[{"$nulls":5},"Kelly",{"v":935,"d":"935 kr"}]
[{"$nulls":5},"Böcker",{"v":250,"d":"250 kr"}]
[{"$nulls":5},"Restaurang",{"v":20,"d":"20 kr"}]
[{"$nulls":5},"Elektronik",{"v":125,"d":"125 kr"}]
[{"$nulls":5},"Musik",{"v":20,"d":"20 kr"}]
[{"$nulls":5},"Parkering",{"v":20,"d":"20 kr"}]
[{"$nulls":5},"Biljetter",{"v":125,"d":"125 kr"}]
[{"$nulls":5},"Kläder",{"v":125,"d":"125 kr"}]
[{"$nulls":5},"Musiklektioner",{"v":250,"d":"250 kr"}]
[{"$nulls":5},"Mamma",{"v":1427,"d":"1,427 kr"}]
[{"$nulls":5},"Bilförsäkring",{"v":74,"d":"74 kr"}]
[{"$nulls":5},"Tandläkare",{"v":235,"d":"235 kr"}]
[{"$nulls":5},"Elektricitet",{"v":70,"d":"70 kr"}]
[{"$nulls":5},"Mat",{"v":470,"d":"470 kr"}]
[{"$nulls":5},"Drivmedel",{"v":74,"d":"74 kr"}]
[{"$nulls":5},"Medicin",{"v":74,"d":"74 kr"}]
[{"$nulls":5},"Klubbavgifter",{"v":125,"d":"125 kr"}]
[{"$nulls":5},"Sjukförsäkring",{"v":70,"d":"70 kr"}]
[{"$nulls":5},"Hemförsäkring",{"v":235,"d":"235 kr"}]
[{"$nulls":5},"Grand Total",{"v":4362,"d":"4,362 kr"}]
{"$rows_empty":68}
[null,"Datum","Köpare","Typ","Belopp"]
[null,"2017-01-17","Pappa","Sport",{"v":1000,"d":"1,000 kr"}]
[null,"2017-01-17","Pappa","Flygbiljetter",{"v":500,"d":"500 kr"}]
[null,"2017-01-17","Pappa","Skatt",{"v":500,"d":"500 kr"}]
[null,"2017-02-20","Kelly","Musik",{"v":20,"d":"20 kr"}]
[null,"2017-02-25","Kelly","Biljetter",{"v":125,"d":"125 kr"}]
[null,"2017-01-21","Kelly","Böcker",{"v":250,"d":"250 kr"}]
[null,"2017-02-20","Kelly","Restaurang",{"v":20,"d":"20 kr"}]
[null,"2017-02-25","Kelly","Kläder",{"v":125,"d":"125 kr"}]
[null,"2017-01-21","Kelly","Musiklektioner",{"v":250,"d":"250 kr"}]
[null,"2017-02-20","Kelly","Parkering",{"v":20,"d":"20 kr"}]
[null,"2017-02-25","Kelly","Elektronik",{"v":125,"d":"125 kr"}]
[null,"2017-01-01","Mamma","Drivmedel",{"v":74,"d":"74 kr"}]
[null,"2017-01-15","Mamma","Mat",{"v":235,"d":"235 kr"}]
[null,"2017-01-21","Mamma","Klubbavgifter",{"v":125,"d":"125 kr"}]
[null,"2017-02-02","Mamma","Mat",{"v":235,"d":"235 kr"}]
[null,"2017-01-01","Mamma","Medicin",{"v":74,"d":"74 kr"}]
[null,"2017-01-15","Mamma","Elektricitet",{"v":70,"d":"70 kr"}]
[null,"2017-02-02","Mamma","Tandläkare",{"v":235,"d":"235 kr"}]
[null,"2017-01-01","Mamma","Bilförsäkring",{"v":74,"d":"74 kr"}]
[null,"2017-01-15","Mamma","Sjukförsäkring",{"v":70,"d":"70 kr"}]
[null,"2017-02-02","Mamma","Hemförsäkring",{"v":235,"d":"235 kr"}]

{"sheet":"17","index":17,"n_rows":107,"n_cols":13,"rows_kept":107}
["Du kan också ha mer än ett kolumnfält. De kan också komprimeras eller expanderas."]
["Pivottabellen för det här exemplet finns i cell B13 till M19. I det här fallet har vi kategorin Typ i avsnittet Kolumner, som innehåller poster för Mat och Värme och vatten."]
["PROVA DET HÄR\nMarkera Mat i cell C14 och tryck på ALT+JN > K för att komprimera hela fältet. Med ALT+JN > 0 expanderas det."]
["Tryck på CTRL + PAGE DOWN när du vill fortsätta med den här självstudiekursen. Tryck på CTRL + PAGE UP om du vill gå till föregående blad."]
{"$rows_empty":7}
[null,null,{"$f":"IF(AND($C$16=398,$D$15=\"Jan\"),\"Snyggt jobbat!\",\" \")","v":" "}]
[null,"Summa av Belopp","Column Labels"]
[null,null,"Mat",{"$nulls":3},"Mat Total","Värme och vatten",{"$nulls":3},"Värme och vatten Total","Grand Total"]
[null,"Row Labels","Jan","Feb","Mar","Apr",null,"Jan","Feb","Mar","Apr"]
[null,"Kelly",{"v":74,"d":"74 kr"},{"v":74,"d":"74 kr"},{"v":125,"d":"125 kr"},{"v":125,"d":"125 kr"},{"v":398,"d":"398 kr"},{"$nulls":5},{"v":398,"d":"398 kr"}]
[null,"Pappa",{"v":235,"d":"235 kr"},{"v":235,"d":"235 kr"},{"v":235,"d":"235 kr"},{"v":74,"d":"74 kr"},{"v":779,"d":"779 kr"},{"$nulls":5},{"v":779,"d":"779 kr"}]
[null,"Mamma",{"$nulls":5},{"v":1000,"d":"1,000 kr"},{"v":1000,"d":"1,000 kr"},{"v":20,"d":"20 kr"},{"v":70,"d":"70 kr"},{"v":2090,"d":"2,090 kr"},{"v":2090,"d":"2,090 kr"}]
[null,"Grand Total",{"v":309,"d":"309 kr"},{"v":309,"d":"309 kr"},{"v":360,"d":"360 kr"},{"v":199,"d":"199 kr"},{"v":1177,"d":"1,177 kr"},{"v":1000,"d":"1,000 kr"},{"v":1000,"d":"1,000 kr"},{"v":20,"d":"20 kr"},{"v":70,"d":"70 kr"},{"v":2090,"d":"2,090 kr"},{"v":3267,"d":"3,267 kr"}]
{"$rows_empty":75}
[null,"Månad","Köpare","Typ","Belopp"]
[null,"Jan","Kelly","Mat",{"v":74,"d":"74 kr"}]
[null,"Jan","Pappa","Mat",{"v":235,"d":"235 kr"}]
[null,"Jan","Mamma","Värme och vatten",{"v":1000,"d":"1,000 kr"}]
[null,"Feb","Kelly","Mat",{"v":74,"d":"74 kr"}]
[null,"Feb","Pappa","Mat",{"v":235,"d":"235 kr"}]
[null,"Feb","Mamma","Värme och vatten",{"v":1000,"d":"1,000 kr"}]
[null,"Mar","Kelly","Mat",{"v":125,"d":"125 kr"}]
[null,"Mar","Pappa","Mat",{"v":235,"d":"235 kr"}]
[null,"Mar","Mamma","Värme och vatten",{"v":20,"d":"20 kr"}]
[null,"Apr","Kelly","Mat",{"v":125,"d":"125 kr"}]
[null,"Apr","Pappa","Mat",{"v":74,"d":"74 kr"}]
[null,"Apr","Mamma","Värme och vatten",{"v":70,"d":"70 kr"}]

{"sheet":"18","index":18,"n_rows":146,"n_cols":5,"rows_kept":146}
["Något du bör tänka på: Om du behöver mer information kan du lägga till många fler radfält eller kolumnfält. I det här exemplet finns det tre radfält."]
["Pivottabellen för det här exemplet finns i cell D8 till E29 och har fält för Årstid, Köpare och Typ i kolumn D, med Summa av Belopp i kolumn E."]
["EXPERTTIPS\nDu kan lägga till massor av fält men det betyder inte att du bör göra det. I det här exemplet fungerar det bra. Men ibland gör för många fält, med alla indrag, att pivottabellen blir för komplicerad för andra att förstå. "]
["Tryck på CTRL + PAGE DOWN när du vill fortsätta med den här självstudiekursen. Tryck på CTRL + PAGE UP om du vill gå till föregående blad."]
[]
[]
[]
[{"$nulls":3},"Row Labels","Summa av Belopp"]
[{"$nulls":3},"Höst",{"v":5425,"d":"5,425 kr"}]
[{"$nulls":3},"Mamma",{"v":5425,"d":"5,425 kr"}]
[{"$nulls":3},"Försäkring",{"v":1272,"d":"1,272 kr"}]
[{"$nulls":3},"Hyra",{"v":3220,"d":"3,220 kr"}]
[{"$nulls":3},"Kraftförsörjning",{"v":403,"d":"403 kr"}]
[{"$nulls":3},"Värme och vatten",{"v":530,"d":"530 kr"}]
[{"$nulls":3},"Vår",{"v":4760,"d":"4,760 kr"}]
[{"$nulls":3},"Pappa",{"v":4760,"d":"4,760 kr"}]
[{"$nulls":3},"Försäkring",{"v":1040,"d":"1,040 kr"}]
[{"$nulls":3},"Hyra",{"v":2400,"d":"2,400 kr"}]
[{"$nulls":3},"Värme och vatten",{"v":1320,"d":"1,320 kr"}]
[{"$nulls":3},"Sommar",{"v":3473,"d":"3,473 kr"}]
[{"$nulls":3},"Mamma",{"v":3473,"d":"3,473 kr"}]
[{"$nulls":3},"Försäkring",{"v":1080,"d":"1,080 kr"}]
[{"$nulls":3},"Hyra",{"v":1260,"d":"1,260 kr"}]
[{"$nulls":3},"Värme och vatten",{"v":1133,"d":"1,133 kr"}]
[{"$nulls":3},"Vinter",{"v":4100,"d":"4,100 kr"}]
[{"$nulls":3},"Pappa",{"v":4100,"d":"4,100 kr"}]
[{"$nulls":3},"Försäkring",{"v":1030,"d":"1,030 kr"}]
[{"$nulls":3},"Hyra",{"v":1420,"d":"1,420 kr"}]
[{"$nulls":3},"Värme och vatten",{"v":1650,"d":"1,650 kr"}]
[{"$nulls":3},"Grand Total",{"v":17758,"d":"17,758 kr"}]
{"$rows_empty":67}
[null,"Köpare","Årstid","Typ","Belopp"]
[null,"Pappa","Vinter","Försäkring",{"v":300,"d":"300 kr"}]
[null,"Pappa","Vinter","Hyra",{"v":200,"d":"200 kr"}]
[null,"Pappa","Vinter","Värme och vatten",{"v":400,"d":"400 kr"}]
[null,"Pappa","Vinter","Försäkring",{"v":300,"d":"300 kr"}]
[null,"Pappa","Vinter","Hyra",{"v":800,"d":"800 kr"}]
[null,"Pappa","Vinter","Värme och vatten",{"v":400,"d":"400 kr"}]
[null,"Pappa","Vinter","Försäkring",{"v":200,"d":"200 kr"}]
[null,"Pappa","Vinter","Hyra",{"v":300,"d":"300 kr"}]
[null,"Pappa","Vinter","Värme och vatten",{"v":450,"d":"450 kr"}]
[null,"Pappa","Vinter","Försäkring",{"v":230,"d":"230 kr"}]
[null,"Pappa","Vinter","Hyra",{"v":120,"d":"120 kr"}]
[null,"Pappa","Vinter","Värme och vatten",{"v":400,"d":"400 kr"}]
[null,"Pappa","Vår","Försäkring",{"v":210,"d":"210 kr"}]
[null,"Pappa","Vår","Hyra",{"v":300,"d":"300 kr"}]
[null,"Pappa","Vår","Värme och vatten",{"v":400,"d":"400 kr"}]
[null,"Pappa","Vår","Försäkring",{"v":230,"d":"230 kr"}]
[null,"Pappa","Vår","Hyra",{"v":900,"d":"900 kr"}]
[null,"Pappa","Vår","Värme och vatten",{"v":300,"d":"300 kr"}]
[null,"Pappa","Vår","Försäkring",{"v":200,"d":"200 kr"}]
[null,"Pappa","Vår","Hyra",{"v":1000,"d":"1,000 kr"}]
[null,"Pappa","Vår","Värme och vatten",{"v":220,"d":"220 kr"}]
[null,"Pappa","Vår","Försäkring",{"v":400,"d":"400 kr"}]
[null,"Pappa","Vår","Hyra",{"v":200,"d":"200 kr"}]
[null,"Pappa","Vår","Värme och vatten",{"v":400,"d":"400 kr"}]
[null,"Mamma","Sommar","Försäkring",{"v":100,"d":"100 kr"}]
[null,"Mamma","Sommar","Hyra",{"v":30,"d":"30 kr"}]
[null,"Mamma","Sommar","Värme och vatten",{"v":123,"d":"123 kr"}]
[null,"Mamma","Sommar","Försäkring",{"v":300,"d":"300 kr"}]
[null,"Mamma","Sommar","Hyra",{"v":350,"d":"350 kr"}]
[null,"Mamma","Sommar","Värme och vatten",{"v":230,"d":"230 kr"}]
[null,"Mamma","Sommar","Försäkring",{"v":120,"d":"120 kr"}]
[null,"Mamma","Sommar","Hyra",{"v":640,"d":"640 kr"}]
[null,"Mamma","Sommar","Värme och vatten",{"v":530,"d":"530 kr"}]
[null,"Mamma","Sommar","Försäkring",{"v":560,"d":"560 kr"}]
[null,"Mamma","Sommar","Hyra",{"v":240,"d":"240 kr"}]
[null,"Mamma","Sommar","Värme och vatten",{"v":250,"d":"250 kr"}]
[null,"Mamma","Höst","Försäkring",{"v":62,"d":"62 kr"}]
[null,"Mamma","Höst","Hyra",{"v":600,"d":"600 kr"}]
[null,"Mamma","Höst","Värme och vatten",{"v":340,"d":"340 kr"}]
[null,"Mamma","Höst","Försäkring",{"v":205,"d":"205 kr"}]
[null,"Mamma","Höst","Hyra",{"v":500,"d":"500 kr"}]
[null,"Mamma","Höst","Kraftförsörjning",{"v":403,"d":"403 kr"}]
[null,"Mamma","Höst","Försäkring",{"v":503,"d":"503 kr"}]
[null,"Mamma","Höst","Hyra",{"v":2000,"d":"2,000 kr"}]
[null,"Mamma","Höst","Värme och vatten",{"v":140,"d":"140 kr"}]
[null,"Mamma","Höst","Försäkring",{"v":502,"d":"502 kr"}]
[null,"Mamma","Höst","Hyra",{"v":120,"d":"120 kr"}]
[null,"Mamma","Höst","Värme och vatten",{"v":50,"d":"50 kr"}]

{"sheet":"19","index":19,"n_rows":55,"n_cols":5,"rows_kept":55}
["Är du redo för fler övningar? Passa på att granska data nedan i cell B7 till E55. När du är redo går du till nästa blad så kan du öva på det du har lärt dig hittills. "]
["Du behöver inte granska alla rader med data. Granska bara fältnamnen på rad 7. Du arbetar med dem på nästa blad. "]
["Tryck på CTRL + PAGE DOWN när du vill fortsätta med den här självstudiekursen. Tryck på CTRL + PAGE UP om du vill gå till föregående blad."]
[]
[]
[]
[null,"Årstid","Säljare","Produkt","Sålda enheter"]
[null,"Vinter","Jenny","Apelsiner",300]
[null,"Vinter","George","Grapefrukt",200]
[null,"Vinter","Dave","Äpplen",400]
[null,"Vinter","Jenny","Bananer",300]
[null,"Vinter","George","Apelsiner",800]
[null,"Vinter","Dave","Grapefrukt",400]
[null,"Vinter","Jenny","Äpplen",200]
[null,"Vinter","George","Bananer",300]
[null,"Vinter","Dave","Apelsiner",450]
[null,"Vinter","Jenny","Grapefrukt",230]
[null,"Vinter","George","Äpplen",120]
[null,"Vinter","Dave","Bananer",400]
[null,"Vår","Jenny","Rödbetor",210]
[null,"Vår","George","Potatis",300]
[null,"Vår","Dave","Sallat",400]
[null,"Vår","Jenny","Rädisor",230]
[null,"Vår","George","Rödbetor",900]
[null,"Vår","Dave","Potatis",300]
[null,"Vår","Jenny","Sallat",200]
[null,"Vår","George","Rädisor",1000]
[null,"Vår","Dave","Rödbetor",220]
[null,"Vår","Jenny","Potatis",400]
[null,"Vår","George","Sallat",200]
[null,"Vår","Dave","Rädisor",400]
[null,"Sommar","Jenny","Blåbär",100]
[null,"Sommar","George","Jordgubbar",30]
[null,"Sommar","Dave","Vindruvor",123]
[null,"Sommar","Jenny","Pumpa",300]
[null,"Sommar","George","Blåbär",350]
[null,"Sommar","Dave","Jordgubbar",230]
[null,"Sommar","Jenny","Vindruvor",120]
[null,"Sommar","George","Pumpa",640]
[null,"Sommar","Dave","Blåbär",530]
[null,"Sommar","Jenny","Jordgubbar",560]
[null,"Sommar","George","Vindruvor",240]
[null,"Sommar","Dave","Pumpa",250]
[null,"Höst","Jenny","Squash",62]
[null,"Höst","George","Zucchini",600]
[null,"Höst","Dave","Äpplen",340]
[null,"Höst","Jenny","Apelsiner",205]
[null,"Höst","George","Squash",500]
[null,"Höst","Dave","Zucchini",403]
[null,"Höst","Jenny","Äpplen",503]
[null,"Höst","George","Apelsiner",2000]
[null,"Höst","Dave","Squash",140]
[null,"Höst","Jenny","Zucchini",502]
[null,"Höst","George","Äpplen",120]
[null,"Höst","Dave","Apelsiner",50]

{"sheet":"20","index":20,"n_rows":17,"n_cols":9,"rows_kept":17}
["1. Pivottabellområdet för det här exemplet finns i cell B12 till C17. Gå till någon av cellerna. \n\n"]
["2. Tryck på ALT+JN, L för att öppna fältlistan för Pivottabellfält. Fokus är som standard på textrutan Sök: Skriv ord som du vill söka efter. Skriv inte något. Tryck istället på TABB en gång. Obs! Om fältlistan inte startas trycker du på ALT + JN, L igen."]
["3. Tryck på piltangenterna för att gå till fältet Säljare. Tryck på blanksteg för att lägga till fältet Säljare i området Rader. Om du vill visa detaljer för Säljare i området Kolumner trycker du på TABB för att gå till fältet Säljare i avsnittet Rad och trycker sedan på blanksteg och väljer ”Flytta till kolumnetiketter”. Tryck på ESC för att stänga fönstret med Pivottabellfält. "]
["4. Fastställ vem som har sålt flest artiklar i höst och gör sedan ett val i cell I8. "]
["Tryck på CTRL + PAGE DOWN när du vill fortsätta med den här självstudiekursen. Tryck på CTRL + PAGE UP om du vill gå till föregående blad."]
[]
[{"$nulls":8},"Välj något av följande:"]
[]
[{"$nulls":8},{"$f":"IF($I$8=\"George\",\"Det är rätt!\",IF($I$8=\"Dave\",\"Försök igen...\",IF($I$8=\"Jenny\",\"Inte riktigt...\",IF($I$8=\" \",\" \",\" \"))))","v":" "}]
[]
[]
[null,"Row Labels","Summa av Sålda enheter"]
[null,"Höst",{"v":5425,"d":"5,425"}]
[null,"Vår",{"v":4760,"d":"4,760"}]
[null,"Sommar",{"v":3473,"d":"3,473"}]
[null,"Vinter",{"v":4100,"d":"4,100"}]
[null,"Grand Total",{"v":17758,"d":"17,758"}]

{"sheet":"21","index":21,"n_rows":14,"n_cols":10,"rows_kept":14}
["1. Klicka på cell B13 för att aktivera pivottabellen ”Summa av Sålda enheter”.\n\n"]
["2. Tryck på ALT+JN, L för att öppna fältlistan för Pivottabellfält. Fokus är som standard på textrutan Sök: Skriv ord som du vill söka efter. Skriv inte något. Tryck istället på TABB en gång. Obs! Om fältlistan inte startas trycker du på ALT + JN, L igen."]
["3. Använd piltangenterna och blanksteg för att expandera exemplet till en lodrät pivottabell med årstider till vänster och säljare med indrag under årstider. Tryck på ESC för att stänga fönstret med Pivottabellfält. "]
["Tryck på CTRL + PAGE DOWN när du vill fortsätta med den här självstudiekursen. Tryck på CTRL + PAGE UP om du vill gå till föregående blad."]
[{"$nulls":9},{"$f":"IF(AND(B$14=\"Höst\",$C$17=1272),\"Bra jobbat! Du har placerat ett\",\" \")","v":" "}]
[{"$nulls":9},{"$f":"IF(AND(B$14=\"Höst\",$C$17=1272),\"andra radfält. Rulla nu\",\" \")","v":" "}]
[{"$nulls":9},{"$f":"IF(AND(B$14=\"Höst\",$C$17=1272),\"ned och klicka på Nästa.\",\" \")","v":" "}]
[]
[]
[]
[]
[]
[null,"Summa av Sålda enheter"]
[null,{"v":17758,"d":"17,758"}]

{"sheet":"22","index":22,"n_rows":14,"n_cols":10,"rows_kept":14}
["1. Klicka på cell B13 för att aktivera pivottabellen ”Summa av Sålda enheter”."]
["2. Tryck på ALT+JN, L för att öppna fältlistan för Pivottabellfält. Fokus är som standard på textrutan Sök: Skriv ord som du vill söka efter. Skriv inte något. Tryck istället på TABB en gång. Obs! Om fältlistan inte startas trycker du på ALT + JN, L igen."]
["3. Använd piltangenterna och blanksteg för att ändra exemplet så att det visar varje produkt på en egen rad och varje årstid i en egen kolumn."]
["Tryck på CTRL + PAGE DOWN när du vill fortsätta med den här självstudiekursen. Tryck på CTRL + PAGE UP om du vill gå till föregående blad.",{"$nulls":8},{"$f":"IF(AND($B$28=\"Äpplen\",$G$27=1505),\"Bra jobbat! Du har placerat\",\" \")","v":" "}]
[{"$nulls":9},{"$f":"IF(AND($B$28=\"Äpplen\",$G$27=1505),\"ett radfält till vänster,\",\" \")","v":" "}]
[{"$nulls":9},{"$f":"IF(AND($B$28=\"Äpplen\",$G$27=1505),\"och ett kolumnfält med\",\" \")","v":" "}]
[{"$nulls":9},{"$f":"IF(AND($B$28=\"Äpplen\",$G$27=1505),\"fyra nya kolumn. Rulla\",\" \")","v":" "}]
[{"$nulls":9},{"$f":"IF(AND($B$28=\"Äpplen\",$G$27=1505),\"ned och klicka på Nästa...\",\" \")","v":" "}]
[]
[]
[]
[]
[null,"Summa av Sålda enheter"]
[null,{"v":17758,"d":"17,758"}]

{"sheet":"23","index":23,"n_rows":16,"n_cols":18,"rows_kept":16}
["1. Klicka på cell B13 för att aktivera pivottabellen ”Summa av Sålda enheter”.\n\n"]
["2. Tryck på ALT+JN, L för att öppna fältlistan för Pivottabellfält. Fokus är som standard på textrutan Sök: Skriv ord som du vill söka efter. Skriv inte något. Tryck istället på TABB en gång. Obs! Om fältlistan inte startas trycker du på ALT + JN, L igen."]
["3. Använd TABB, piltangenterna och blanksteg för att ändra exemplet så att det visar Säljare till vänster med Årstider indraget nedanför."]
["Tryck på CTRL + PAGE DOWN när du vill fortsätta med den här självstudiekursen. Tryck på CTRL + PAGE UP om du vill gå till föregående blad."]
[{"$nulls":9},{"$f":"IF(AND($B$14=\"Dave\",$C$14=5036),\"Bra jobbat! Nu är data\",\" \")","v":" "}]
[{"$nulls":9},{"$f":"IF(AND($B$14=\"Dave\",$C$14=5036),\"lättare att läsa. Rulla ned\",\" \")","v":" "}]
[{"$nulls":9},{"$f":"IF(AND($B$14=\"Dave\",$C$14=5036),\"och klicka på Nästa...\",\" \")","v":" "}]
[]
[]
[]
[]
[]
[null,null,"Column Labels"]
[null,null,"Dave",{"$nulls":3},"Dave Total","George",{"$nulls":3},"George Total","Jenny",{"$nulls":3},"Jenny Total","Grand Total"]
[null,null,"Höst","Vår","Sommar","Vinter",null,"Höst","Vår","Sommar","Vinter",null,"Höst","Vår","Sommar","Vinter"]
[null,"Summa av Sålda enheter",933,{"v":1320,"d":"1,320"},{"v":1133,"d":"1,133"},{"v":1650,"d":"1,650"},{"v":5036,"d":"5,036"},{"v":3220,"d":"3,220"},{"v":2400,"d":"2,400"},{"v":1260,"d":"1,260"},{"v":1420,"d":"1,420"},{"v":8300,"d":"8,300"},{"v":1272,"d":"1,272"},{"v":1040,"d":"1,040"},{"v":1080,"d":"1,080"},{"v":1030,"d":"1,030"},{"v":4422,"d":"4,422"},{"v":17758,"d":"17,758"}]

{"sheet":"24","index":24,"n_rows":14,"n_cols":8,"rows_kept":14}
["1. Klicka på cell B13 för att aktivera pivottabellen ”Summa av Sålda enheter”."]
["2. Tryck på ALT+JN, L för att öppna fältlistan för Pivottabellfält. Fokus är som standard på textrutan Sök: Skriv ord som du vill söka efter. Skriv inte något. Tryck istället på TABB en gång. Obs! Om fältlistan inte startas trycker du på ALT + JN, L igen."]
["3. Använd TABB, piltangenterna och blanksteg för att ändra exemplet så att Säljare har egna kolumnfält med Årstider till vänster och Produkter indraget nedanför."]
["4. Markera cell I9 och välj hur mycket grapefrukt Dave har sålt i vinter."]
["Tryck på CTRL + PAGE DOWN när du vill fortsätta med den här självstudiekursen. Tryck på CTRL + PAGE UP om du vill gå till föregående blad."]
[]
[]
[{"$nulls":7},"Välj något av följande:"]
[]
[{"$nulls":7},{"$f":"IF($H$9=400,\"Det är rätt!\",IF($H$9=530,\"Försök igen…\",IF($H$9=123,\"Inte riktigt…\",\" \")))","v":" "}]
[]
[]
[null,"Summa av Sålda enheter"]
[null,{"v":17758,"d":"17,758"}]

{"sheet":"Läs mer","index":25,"n_rows":8,"n_cols":1,"rows_kept":8}
["Bra jobbat. Visst är det pivottabeller bra?"]
["Men vi vill gärna att du fortsätter! Det finns mer att upptäcka..."]
["Mer information om pivottabeller\nUpptäck mer du kan göra genom att läsa den här artikeln om pivottabeller."]
["Om uppdatering\nLäs den här viktiga artikeln om hur du uppdaterar pivottabeller. "]
["Community\nFå kontakt med andra Excel-användare De kan hjälpa dig och du kan hjälpa dem."]
[]
[]
[" "]